fUSD/lending_fUSD_20251012
["ID","MTS","AMOUNT","RATE_DAILY","PERIOD"]
[391017222,1760290232355,-79.27408518,0.00014944,2]
[391017223,1760290232367,-420.72591482,0.00014944,2]
[391017224,1760290232376,-500.0,0.00014944,2]
[391017225,1760290232386,-500.0,0.00014944,2]
[391017226,1760290232395,-500.0,0.00014944,2]
[391017227,1760290232405,-1000.0,0.00014944,2]
[391017228,1760290232414,-580.98629763,0.00014944,2]
[391017229,1760290232425,-419.01370237,0.00014944,2]
[391017230,1760290232435,-151.07629763,0.00014944,2]
[391017231,1760290232478,-848.92370237,0.00014944,2]
[391017232,1760290232488,-1000.0,0.00014944,2]
[391017233,1760290232497,-1000.0,0.00014944,2]
[391017234,1760290232509,-1000.0,0.00014944,2]
[391017235,1760290232519,-1000.0,0.00014944,2]
[391017236,1760290232528,-851.20354861,0.00014944,2]
[391017237,1760290232539,-148.79645139,0.00014944,2]
[391017238,1760290232548,-633.79960675,0.00014944,2]
[391017239,1760290232599,-366.20039325,0.00014944,2]
[391017240,1760290232609,-1000.0,0.00014944,2]
[391017241,1760290232625,-500.0,0.00014944,2]
[391017242,1760290232635,-1000.0,0.00014944,2]
[391017243,1760290232644,-500.0,0.00014944,2]
[391017244,1760290232653,-1000.0,0.00014944,2]
[391017245,1760290232662,-500.0,0.00014944,2]
[391017246,1760290232671,-500.0,0.00014944,2]
[391017247,1760290232679,-500.0,0.00014944,2]
[391017248,1760290232689,-500.0,0.00014944,2]
[391017249,1760290232698,-500.0,0.00014944,2]
[391017250,1760290232707,-84.45059578,0.00014944,2]
[391017251,1760290232718,-415.54940422,0.00014944,2]
[391017252,1760290232727,-85.91910353,0.00014944,2]
[391017253,1760290232770,-268.3990187,0.00014944,2]
[391017254,1760290237439,-226.03360058,0.00014878,2]
[391017255,1760290237450,-145.68187777,0.00014944,2]
[391017256,1760290237460,-35.88752165,0.00014951,2]
[391017257,1760290237472,-274.13688894,0.00014951,2]
[391017258,1760290237483,-189.97558941,0.00014951,2]
[391017259,1760290237493,-427.40207241,0.00014951,2]
[391017260,1760290237503,-479.23763949,0.00014951,2]
[391017261,1760290237517,-20.76236051,0.00014951,2]
[391017262,1760290237526,-500.0,0.00014951,2]
[391017263,1760290237535,-500.0,0.00014951,2]
[391017264,1760290237544,-500.0,0.00014951,2]
[391017265,1760290237554,-500.0,0.00014951,2]
[391017266,1760290237563,-500.0,0.00014951,2]
[391017267,1760290237573,-582.1357345,0.00014952,2]
[391017268,1760290237582,-42222.16204708,0.00014952,2]
[391017269,1760290237592,-190.93,0.0001497,2]
[391017270,1760290237603,-190.93,0.0001497,2]
[391017271,1760290237614,-190.93,0.0001497,2]
[391017272,1760290237624,-190.93,0.0001497,2]
[391017273,1760290237635,-190.93,0.0001497,2]
[391017274,1760290237644,-500.0,0.00014973,2]
[391017275,1760290237654,-505.77138089,0.00014973,2]
[391017277,1760290237663,-151.0,0.00014977,2]
[391017279,1760290237673,-1202.87955469,0.00014977,2]
[391017280,1760290237682,-49401.91456674,0.0001498,2]
[391017281,1760290237693,-62175.00000005,0.0001498,2]
[391017282,1760290237705,-6180.58796693,0.0001498,2]
[391017284,1760290237716,-4119.87661765,0.0001498,2]
[391017288,1760290237739,-78775.25327122,0.0001498,2]
[391017290,1760290237750,-49347.36757741,0.0001498,2]
[391017292,1760290237760,-395.61092,0.0001498,2]
[391017294,1760290237769,-1889.88,0.00014982,2]
[391017296,1760290237778,-772.0,0.00014984,2]
[391017298,1760290237788,-4121.0,0.00014984,2]
[391017300,1760290237797,-901.0,0.00014984,2]
[391017302,1760290237806,-1342.4134772,0.0001499,2]
[391017304,1760290237815,-2841.9127648,0.0001499,2]
[391017306,1760290237825,-3397.9724733,0.0001499,2]
[391017308,1760290237834,-150.0,0.00014991,2]
[391017310,1760290237843,-150.0,0.00014991,2]
[391017312,1760290237852,-150.0,0.00014991,2]
[391017314,1760290237862,-500.0,0.00014991,2]
[391017316,1760290237872,-192.75296998,0.00014991,2]
[391017318,1760290237881,-150.0,0.00014991,2]
[391017320,1760290237891,-500.0,0.00014991,2]
[391017322,1760290237900,-150.0,0.00014991,2]
[391017324,1760290237909,-7009.2865107,0.00014998,2]
[391017326,1760290237918,-319.73566142,0.00014999,2]
[391017328,1760290237927,-199.19386853,0.00014999,2]
[391017330,1760290237936,-386.371,0.00014999,2]
[391017332,1760290237946,-158.604,0.00014999,2]
[391017333,1760290237955,-1000.0,0.00014999,2]
[391017336,1760290237964,-42044.8987767,0.00015,2]
[391017338,1760290237975,-5739.3692,0.00015,2]
[391017340,1760290237986,-717.71710117,0.00015,2]
[391017342,1760290238001,-15914.4587627,0.00015,2]
[391017345,1760290238030,-981.36511929,0.00015,2]
[391017468,1760290239383,-167.5183728,0.0001488,2]
[391017470,1760290239392,-10165.96442962,0.00015,2]
[391017475,1760290239439,-2084.97601472,0.00015,2]
[391017477,1760290239451,-4799.55160497,0.00015,2]
[391017480,1760290239462,-890.88350012,0.00015,2]
[391017482,1760290239474,-1146.2499995,0.00015,2]
[391017484,1760290239485,-687.00000082,0.00015,2]
[391017486,1760290239496,-2240.55432072,0.00015,2]
[391017488,1760290239507,-3997.44866322,0.00015,2]
[391017490,1760290239523,-3750.43412051,0.00015,2]
[391017521,1760290239819,-462.627,0.00014999,2]
[391017523,1760290239828,-9066.34810143,0.00015,2]
[391017525,1760290239839,-1728.591437,0.00015,2]
[391017566,1760290240214,-3545.47566955,0.00015,2]
[391017700,1760290241478,-1184.7,0.00015,2]
[391017703,1760290241490,-856.96265613,0.00015,2]
[391017705,1760290241499,-11.18229925,0.00015,2]
[391017707,1760290241515,-1719.3985112,0.00015,2]
[391017709,1760290241527,-123700.77736237,0.00015,2]
[391017711,1760290241538,-5741.96099999,0.00015,2]
[391017713,1760290241549,-2542.93507443,0.00015,2]
[391017716,1760290241561,-1936.69644032,0.00015,2]
[391017809,1760290242450,-506.06,0.00014984,2]
[391017812,1760290242468,-253.480003,0.00014984,2]
[391017819,1760290242512,-1683.082161,0.00014984,2]
[391017821,1760290242529,-102.377836,0.00014984,2]
[391017824,1760290242538,-339.53001979,0.00015,2]
[391017838,1760290242622,-9523.99957396,0.00015,2]
[391017846,1760290242679,-263320.27652011,0.00015,2]
[391017853,1760290242739,-27451.4092867,0.00015,2]
[391017956,1760290245457,-11811.8,0.00015,2]
[391017957,1760290245619,-533.70043834,0.000149,2]
[391017958,1760290245628,-584976.09795055,0.00015,2]
[391017959,1760290245676,-23645.622,0.00015,2]
[391017960,1760290245689,-330.26960423,0.00015,2]
[391017961,1760290245765,-211.81701527,0.00015,2]
[391017962,1760290245779,-27008.65740653,0.00015,2]
[391018144,1760290923074,1699.19,0.00027397,120]
[391018167,1760291166510,1500.0,0.00027397,120]
[391018185,1760291431594,-653.3799,0.00013951,2]
[391018186,1760291431605,-2367.365,0.00013951,2]
[391018187,1760291431663,-544.02,0.00013951,2]
[391018192,1760291431962,-1796.2851,0.00013951,2]
[391018193,1760291431972,-300.0,0.00013998,2]
[391018195,1760291431981,-1200.0,0.00013998,2]
[391018198,1760291431991,-18364.14875271,0.00014,2]
[391018199,1760291432001,-1000.0,0.00014086,2]
[391018200,1760291432011,-2133.51341617,0.00014159,2]
[391018219,1760291432170,-282.564,0.00014159,2]
[391018222,1760291432181,-10312.86889723,0.00014159,2]
[391018256,1760291432675,-3754.9936866,0.00014159,2]
[391018257,1760291432687,-673.88250286,0.00014772,2]
[391018258,1760291432697,-215.48,0.00014815,2]
[391018259,1760291432706,-716.66429748,0.00014817,2]
[391018260,1760291432716,-267.46074303,0.00014817,2]
[391018261,1760291432726,-150.0,0.00014825,2]
[391018262,1760291432735,-8725.75788484,0.00014826,2]
[391018263,1760291432744,-2446.53630895,0.00014826,2]
[391018264,1760291432755,-440.17707976,0.00014826,2]
[391018269,1760291437754,-2113.28661129,0.00014826,2]
[391018270,1760291437764,-5000.0,0.00014826,2]
[391018271,1760291437773,-5000.0,0.00014826,2]
[391018272,1760291437783,-5000.0,0.00014826,2]
[391018273,1760291437792,-1524.24165,0.0001485,2]
[391018275,1760291437802,-200.0,0.0001488,2]
[391018277,1760291437811,-180.04089818,0.0001488,2]
[391018279,1760291437820,-3867.43084053,0.0001488,2]
[391018281,1760291437832,-412.19964,0.0001488,2]
[391018370,1760291440901,-353.0,0.00014686,2]
[391018371,1760291440910,-720.36951947,0.0001488,2]
[391018372,1760291440920,-112.82827235,0.00014884,2]
[391018373,1760291440932,-945.04505926,0.00014884,2]
[391018374,1760291440943,-180.34614129,0.00014884,2]
[391018375,1760291440952,-180.04089818,0.00014887,2]
[391018376,1760291440961,-180.04089818,0.00014893,2]
[391018377,1760291440970,-828.58472298,0.000149,2]
[391018378,1760291440981,-163.70797485,0.000149,2]
[391018379,1760291440991,-180.04089818,0.000149,2]
[391018380,1760291441002,-622.65051138,0.000149,2]
[391018381,1760291441011,-202.26748446,0.000149,2]
[391018382,1760291441023,-309.77,0.00014916,2]
[391018383,1760291441034,-806.4787502,0.00014916,2]
[391018384,1760291441044,-241.94362506,0.00014926,2]
[391018385,1760291441054,-241.94362506,0.00014944,2]
[391018386,1760291441063,-987.693,0.00014944,2]
[391018387,1760291441072,-173.05359878,0.00014944,2]
[391018388,1760291441082,-8020.53606386,0.00014952,2]
[391018389,1760291441091,-241.94362506,0.00014963,2]
[391018390,1760291441103,-806.4787502,0.00014969,2]
[391018391,1760291441113,-500.0,0.0001497,2]
[391018392,1760291441123,-500.0,0.0001497,2]
[391018393,1760291441132,-500.0,0.0001497,2]
[391018394,1760291441141,-500.0,0.0001497,2]
[391018395,1760291441151,-500.0,0.0001497,2]
[391018396,1760291441160,-300.0,0.0001497,2]
[391018397,1760291441169,-500.0,0.0001497,2]
[391018398,1760291441179,-300.0,0.0001497,2]
[391018399,1760291441189,-500.0,0.0001497,2]
[391018400,1760291441198,-300.0,0.0001497,2]
[391018401,1760291441207,-500.0,0.0001497,2]
[391018402,1760291441216,-500.0,0.0001497,2]
[391018403,1760291441225,-500.0,0.0001497,2]
[391018404,1760291441234,-470.5785721,0.0001497,2]
[391018405,1760291441244,-1000.0,0.0001497,2]
[391018406,1760291441254,-200.0,0.0001497,2]
[391018407,1760291441263,-1000.0,0.0001497,2]
[391018408,1760291441272,-1000.0,0.0001497,2]
[391018409,1760291441282,-1000.0,0.0001497,2]
[391018410,1760291441292,-322.6107,0.0001497,2]
[391018411,1760291441301,-1000.0,0.0001497,2]
[391018412,1760291441310,-1000.0,0.0001497,2]
[391018413,1760291441319,-1000.0,0.0001497,2]
[391018414,1760291441329,-1000.0,0.0001497,2]
[391018415,1760291441338,-1000.0,0.0001497,2]
[391018416,1760291441348,-1000.0,0.0001497,2]
[391018417,1760291441358,-1000.0,0.0001497,2]
[391018418,1760291441369,-1000.0,0.0001497,2]
[391018419,1760291441378,-1000.0,0.0001497,2]
[391018420,1760291441387,-1000.0,0.0001497,2]
[391018421,1760291441397,-1000.0,0.0001497,2]
[391018422,1760291441406,-1000.0,0.0001497,2]
[391018423,1760291441415,-1000.0,0.0001497,2]
[391018424,1760291441424,-1000.0,0.0001497,2]
[391018425,1760291441434,-1000.0,0.0001497,2]
[391018426,1760291441444,-1000.0,0.0001497,2]
[391018427,1760291441453,-1000.0,0.0001497,2]
[391018428,1760291441462,-1000.0,0.0001497,2]
[391018429,1760291441472,-1000.0,0.0001497,2]
[391018430,1760291441481,-500.0,0.0001497,2]
[391018431,1760291441490,-1000.0,0.0001497,2]
[391018432,1760291441499,-500.0,0.0001497,2]
[391018433,1760291441509,-500.0,0.0001497,2]
[391018434,1760291441518,-500.0,0.0001497,2]
[391018435,1760291441528,-500.0,0.0001497,2]
[391018436,1760291441540,-500.0,0.0001497,2]
[391018437,1760291441549,-500.0,0.0001497,2]
[391018438,1760291441558,-500.0,0.0001497,2]
[391018439,1760291441569,-500.0,0.0001497,2]
[391018440,1760291441579,-500.0,0.0001497,2]
[391018441,1760291441588,-500.0,0.0001497,2]
[391018442,1760291441598,-500.0,0.0001497,2]
[391018443,1760291441610,-151.0,0.0001497,2]
[391018444,1760291441622,-151.0,0.0001497,2]
[391018445,1760291441632,-151.0,0.0001497,2]
[391018446,1760291441641,-151.0,0.0001497,2]
[391018447,1760291441651,-151.0,0.0001497,2]
[391018448,1760291441661,-151.0,0.0001497,2]
[391018449,1760291441670,-151.0,0.0001497,2]
[391018450,1760291441680,-151.0,0.0001497,2]
[391018451,1760291441689,-151.0,0.0001497,2]
[391018452,1760291441699,-219.53479784,0.0001497,2]
[391018453,1760291441708,-500.0,0.00014973,2]
[391018454,1760291441718,-161.19750188,0.00014973,2]
[391018455,1760291441728,-500.0,0.00014973,2]
[391018456,1760291441738,-500.0,0.00014973,2]
[391018457,1760291441747,-500.0,0.00014973,2]
[391018458,1760291441757,-806.4787502,0.00014973,2]
[391018459,1760291441767,-500.0,0.00014976,2]
[391018460,1760291441777,-500.0,0.00014976,2]
[391018461,1760291441787,-500.0,0.00014976,2]
[391018462,1760291441796,-500.0,0.00014976,2]
[391018463,1760291441806,-500.0,0.00014976,2]
[391018464,1760291441825,-500.0,0.00014976,2]
[391018465,1760291441834,-500.0,0.00014976,2]
[391018466,1760291441843,-500.0,0.00014976,2]
[391018467,1760291441852,-500.0,0.00014976,2]
[391018468,1760291441862,-500.0,0.00014976,2]
[391018469,1760291441875,-500.0,0.00014976,2]
[391018470,1760291441884,-500.0,0.00014976,2]
[391018471,1760291441893,-500.0,0.00014976,2]
[391018472,1760291441903,-500.0,0.00014976,2]
[391018473,1760291441912,-500.0,0.00014976,2]
[391018474,1760291441922,-500.0,0.00014976,2]
[391018475,1760291441931,-500.0,0.00014976,2]
[391018476,1760291441941,-500.0,0.00014976,2]
[391018477,1760291441951,-500.0,0.00014976,2]
[391018478,1760291441960,-500.0,0.00014976,2]
[391018479,1760291441970,-500.0,0.00014976,2]
[391018480,1760291441980,-500.0,0.00014976,2]
[391018481,1760291441990,-500.0,0.00014976,2]
[391018482,1760291442000,-500.0,0.00014976,2]
[391018483,1760291442009,-500.0,0.00014976,2]
[391018484,1760291442019,-500.0,0.00014976,2]
[391018485,1760291442029,-500.0,0.00014976,2]
[391018486,1760291442038,-500.0,0.00014976,2]
[391018487,1760291442048,-500.0,0.00014976,2]
[391018488,1760291442057,-500.0,0.00014976,2]
[391018489,1760291442067,-500.0,0.00014976,2]
[391018490,1760291442076,-500.0,0.00014976,2]
[391018491,1760291442085,-500.0,0.00014976,2]
[391018492,1760291442094,-500.0,0.00014976,2]
[391018493,1760291442103,-500.0,0.00014976,2]
[391018494,1760291442113,-500.0,0.00014976,2]
[391018495,1760291442125,-500.0,0.00014976,2]
[391018496,1760291442135,-500.0,0.00014976,2]
[391018497,1760291442144,-500.0,0.00014976,2]
[391018498,1760291442154,-500.0,0.00014976,2]
[391018499,1760291442163,-500.0,0.00014976,2]
[391018500,1760291442172,-500.0,0.00014976,2]
[391018501,1760291442182,-500.0,0.00014976,2]
[391018502,1760291442195,-500.0,0.00014976,2]
[391018503,1760291442204,-500.0,0.00014976,2]
[391018504,1760291442213,-500.0,0.00014976,2]
[391018505,1760291442224,-500.0,0.00014976,2]
[391018506,1760291442233,-500.0,0.00014976,2]
[391018507,1760291442243,-500.0,0.00014976,2]
[391018508,1760291442252,-500.0,0.00014976,2]
[391018509,1760291442266,-500.0,0.00014976,2]
[391018510,1760291442275,-500.0,0.00014976,2]
[391018511,1760291442284,-500.0,0.00014976,2]
[391018512,1760291442294,-500.0,0.00014976,2]
[391018513,1760291442303,-500.0,0.00014976,2]
[391018514,1760291442312,-211.03550132,0.00014976,2]
[391018515,1760291442322,-2797.0,0.00014978,2]
[391018516,1760291442331,-1795.38,0.00014979,2]
[391018517,1760291442340,-223.814963,0.00014979,2]
[391018518,1760291442350,-156.6704741,0.00014979,2]
[391018519,1760291442359,-250000.0,0.0001498,2]
[391018520,1760291442372,-233159.13311258,0.0001498,2]
[391018521,1760291442385,-373.5644,0.0001498,2]
[391018523,1760291442397,-5743.43164131,0.0001498,2]
[391018524,1760291442408,-654.55033965,0.0001498,2]
[391018525,1760291442418,-159.027,0.00014984,2]
[391018526,1760291442428,-816.0,0.00014984,2]
[391018527,1760291442437,-4121.0,0.00014984,2]
[391018528,1760291442446,-772.0,0.00014984,2]
[391018529,1760291442455,-168.0,0.00014987,2]
[391018530,1760291442465,-1960.35724458,0.0001499,2]
[391018531,1760291442474,-1960.35724458,0.0001499,2]
[391018532,1760291442483,-1960.35724458,0.0001499,2]
[391018533,1760291442493,-251.54344574,0.00014991,2]
[391018534,1760291442502,-150.0,0.00014991,2]
[391018535,1760291442512,-500.0,0.00014991,2]
[391018536,1760291442521,-500.0,0.00014991,2]
[391018537,1760291442535,-150.0,0.00014991,2]
[391018538,1760291442544,-296.0,0.00014991,2]
[391018539,1760291442554,-150.0,0.00014991,2]
[391018541,1760291442563,-500.0,0.00014991,2]
[391018542,1760291442574,-150.0,0.00014991,2]
[391018543,1760291442583,-150.0,0.00014991,2]
[391018544,1760291442593,-1158.82100279,0.00014999,5]
[391018545,1760291442603,-59296.75101141,0.00015,2]
[391018546,1760291442613,-12815.06193809,0.00015,2]
[391018547,1760291442839,-353.0,0.00014717,2]
[391018548,1760291442849,-194.925209,0.00014976,2]
[391018549,1760291442860,-356.90713838,0.00014976,2]
[391018550,1760291442874,-187.39757564,0.00014984,2]
[391018551,1760291442885,-994.60242436,0.00014984,2]
[391018552,1760291442895,-9677.14116556,0.00015,2]
[391018553,1760291442910,-321582.59199341,0.00015,2]
[391018554,1760291442926,-13871.76770698,0.00015,2]
[391018555,1760291445821,-191205.11975015,0.00015,2]
[391018556,1760291445834,-1038.89624518,0.00015,2]
[391018566,1760291602428,500.0,0.00025331,120]
[391018567,1760291602790,500.0,0.00027396,120]
[391018594,1760291835238,500.0,0.00011986,2]
[391018595,1760291835821,500.0,0.00011986,2]
[391018599,1760291921733,153.41,6.948e-05,2]
[391018600,1760291921925,153.41,7.527e-05,2]
[391018601,1760291922133,153.41,8.106e-05,2]
[391018602,1760291922337,153.41,8.685e-05,2]
[391018603,1760291922563,153.41,9.264e-05,2]
[391018604,1760291922763,153.41,9.843e-05,2]
[391018605,1760291923160,153.41,0.00010422,2]
[391018606,1760291923375,153.41,0.00011001,2]
[391018607,1760291923569,153.41,0.0001158,2]
[391018608,1760291923765,153.41,0.00012159,2]
[391018611,1760292104997,-153.41,0.00012738,2]
[391018613,1760292327257,116.3872,8.22e-05,2]
[391018614,1760292327281,883.6128,8.22e-05,2]
[391018615,1760292327807,1000.0,9.59e-05,2]
[391018616,1760292328875,1000.0,0.0001096,2]
[391018625,1760292509584,700.0,8.22e-05,2]
[391018626,1760292510255,700.0,9.59e-05,2]
[391018627,1760292510822,700.0,0.0001096,2]
[391018628,1760292511353,700.0,0.0001233,2]
[391018646,1760292631775,-153.41,0.00013317,2]
[391018647,1760292631785,-143.87895112,0.00013332,2]
[391018648,1760292631796,-851.62009105,0.00013332,2]
[391018649,1760292631806,-500.0,0.00013356,2]
[391018650,1760292631815,-161.53,0.00013468,2]
[391018651,1760292631824,-150.0,0.00013806,2]
[391018652,1760292631834,-250.0,0.00013841,7]
[391018653,1760292631843,-153.41,0.00013896,2]
[391018654,1760292631856,-885.42,0.00013962,2]
[391018655,1760292631866,-1600.0,0.00013982,2]
[391018656,1760292631875,-200.0,0.00014025,2]
[391018657,1760292631885,-166.66,0.00014245,2]
[391018658,1760292631894,-300.0,0.00014248,2]
[391018659,1760292631904,-1200.0,0.00014248,2]
[391018660,1760292631913,-151.0,0.00014249,2]
[391018661,1760292631924,-8565.75555911,0.00014249,2]
[391018662,1760292631934,-621.78829552,0.00014249,2]
[391018663,1760292631944,-267.46074303,0.00014249,2]
[391018664,1760292631953,-214.48,0.00014308,2]
[391018665,1760292631963,-500.0,0.00014473,2]
[391018666,1760292631973,-162.31152717,0.00014481,2]
[391018667,1760292631983,-412.0,0.00014498,2]
[391018668,1760292631993,-500.0,0.00014499,2]
[391018669,1760292632003,-500.0,0.00014499,2]
[391018670,1760292632012,-500.0,0.00014499,2]
[391018671,1760292632021,-500.0,0.00014499,2]
[391018672,1760292632031,-500.0,0.00014499,2]
[391018673,1760292632040,-500.0,0.00014499,2]
[391018674,1760292632050,-500.0,0.00014499,2]
[391018675,1760292632059,-500.0,0.00014499,2]
[391018676,1760292632069,-500.0,0.00014499,2]
[391018677,1760292632078,-500.0,0.00014499,2]
[391018678,1760292632087,-500.0,0.00014499,2]
[391018679,1760292632096,-500.0,0.00014499,2]
[391018681,1760292632106,-500.0,0.00014499,2]
[391018683,1760292632116,-500.0,0.00014499,2]
[391018685,1760292632126,-500.0,0.00014499,2]
[391018688,1760292632135,-500.0,0.00014499,2]
[391018690,1760292632145,-500.0,0.00014499,2]
[391018691,1760292632154,-500.0,0.00014499,2]
[391018694,1760292632163,-500.0,0.00014499,2]
[391018696,1760292632173,-500.0,0.00014499,2]
[391018698,1760292632182,-500.0,0.00014499,2]
[391018699,1760292632192,-500.0,0.00014499,2]
[391018700,1760292632201,-500.0,0.00014499,2]
[391018702,1760292632211,-500.0,0.00014499,2]
[391018704,1760292632220,-500.0,0.00014499,2]
[391018706,1760292632229,-500.0,0.00014499,2]
[391018708,1760292632238,-500.0,0.00014499,2]
[391018710,1760292632247,-500.0,0.00014499,2]
[391018712,1760292632257,-500.0,0.00014499,2]
[391018714,1760292632266,-500.0,0.00014499,2]
[391018716,1760292632275,-500.0,0.00014499,2]
[391018718,1760292632284,-500.0,0.00014499,2]
[391018720,1760292632293,-243.17074993,0.00014499,2]
[391018722,1760292632302,-500.0,0.00014499,2]
[391018723,1760292632311,-500.0,0.00014499,2]
[391018724,1760292632321,-500.0,0.00014499,2]
[391018725,1760292632330,-500.0,0.00014499,2]
[391018726,1760292632339,-500.0,0.00014499,2]
[391018727,1760292632349,-500.0,0.00014499,2]
[391018728,1760292632359,-500.0,0.00014499,2]
[391018729,1760292632368,-500.0,0.00014499,2]
[391018730,1760292632378,-500.0,0.00014499,2]
[391018731,1760292632388,-500.0,0.00014499,2]
[391018732,1760292632397,-500.0,0.00014499,2]
[391018733,1760292632406,-500.0,0.00014499,2]
[391018734,1760292632415,-300.0,0.00014499,2]
[391018735,1760292632425,-500.0,0.00014499,2]
[391018736,1760292632434,-500.0,0.00014499,2]
[391018737,1760292632443,-500.0,0.00014499,2]
[391018738,1760292632453,-500.0,0.00014499,2]
[391018739,1760292632462,-500.0,0.00014499,2]
[391018740,1760292632471,-2793.37933389,0.000145,2]
[391018741,1760292632483,-828.644,0.000145,2]
[391018742,1760292632501,-2920.00004,0.000145,2]
[391018747,1760292637829,-11404.0,0.000145,2]
[391018748,1760292637884,-490.1908736,0.000145,2]
[391018749,1760292637897,-2168.36475445,0.000145,2]
[391018750,1760292637940,-3543.8996,0.000145,2]
[391018751,1760292637998,-1906.3,0.000145,2]
[391018913,1760292639702,-106255.88329835,0.000145,2]
[391018920,1760292639758,-545.19909926,0.000145,2]
[391018926,1760292639814,-54202.44019918,0.000145,2]
[391018932,1760292639870,-1003.32959622,0.000145,2]
[391018939,1760292639928,-982.28376693,0.000145,2]
[391018941,1760292639939,-9103.83842702,0.000145,2]
[391018943,1760292639950,-438.09065008,0.000145,2]
[391018944,1760292639962,-1928.78484605,0.000145,2]
[391018945,1760292639973,-700.0,0.000145,2]
[391018946,1760292640036,-43100.74612051,0.000145,2]
[391018947,1760292640048,-2626.52587949,0.000145,2]
[391019212,1760292642782,-563.84390452,0.000145,2]
[391019214,1760292642793,-56910.0,0.000145,2]
[391019228,1760292642915,-34.83130731,0.000145,2]
[391019238,1760292643002,-353701.69893658,0.000145,2]
[391019240,1760292643011,-353.0,0.00014581,2]
[391019242,1760292643020,-353.0,0.00014585,2]
[391019244,1760292643029,-353.0,0.00014597,2]
[391019246,1760292643038,-2000.0,0.00014648,2]
[391019248,1760292643047,-262.27887713,0.00014648,2]
[391019250,1760292643057,-409.8816646,0.00014648,2]
[391019252,1760292643066,-399.0,0.00014675,2]
[391019254,1760292643076,-151.0,0.00014684,2]
[391019256,1760292643085,-151.0,0.00014684,2]
[391019258,1760292643094,-151.0,0.00014684,2]
[391019260,1760292643103,-151.0,0.00014684,2]
[391019262,1760292643112,-151.0,0.00014684,2]
[391019264,1760292643120,-1000.0,0.00014684,2]
[391019266,1760292643131,-151.0,0.00014684,2]
[391019268,1760292643140,-1000.0,0.00014684,2]
[391019270,1760292643149,-151.0,0.00014684,2]
[391019272,1760292643159,-1000.0,0.00014684,2]
[391019274,1760292643168,-151.0,0.00014684,2]
[391019275,1760292643177,-500.0,0.00014684,2]
[391019277,1760292643185,-999.84382614,0.00014684,2]
[391019279,1760292643194,-151.0,0.00014684,2]
[391019281,1760292643203,-500.0,0.00014684,2]
[391019283,1760292643212,-500.0,0.00014684,2]
[391019285,1760292643221,-262.90038801,0.00014684,2]
[391019287,1760292643231,-500.0,0.00014684,2]
[391019289,1760292643240,-500.0,0.00014684,2]
[391019291,1760292643250,-500.0,0.00014684,2]
[391019293,1760292643259,-500.0,0.00014684,2]
[391019295,1760292643268,-500.0,0.00014684,2]
[391019297,1760292643278,-500.0,0.00014684,2]
[391019299,1760292643289,-500.0,0.00014684,2]
[391019301,1760292643298,-420.72591482,0.00014684,2]
[391019303,1760292643307,-500.0,0.00014684,2]
[391019305,1760292643318,-151.0,0.00014684,2]
[391019307,1760292643328,-500.0,0.00014684,2]
[391019309,1760292643337,-151.0,0.00014684,2]
[391019311,1760292643347,-500.0,0.00014684,2]
[391019313,1760292643357,-151.0,0.00014684,2]
[391019315,1760292643366,-500.0,0.00014684,2]